bitfinex/quotes_ETHUSD_20250715
["timestamp","ask_amount","ask_price","bid_price","bid_amount"]
[1752553401784,5.588,2967.8,2967.7,3.67746746]
[1752553402078,5.588,2967.8,2967.7,0.30819587]
[1752553402282,5.588,2967.8,2967.7,3.6778087]
[1752553403000,5.588,2967.8,2967.7,0.30819587]
[1752553403180,5.588,2967.8,2967.7,3.6778087]
[1752553403392,0.001,2967.8,2967.7,3.6778087]
[1752553403567,5.586,2967.8,2967.7,0.30819587]
[1752553405399,9.42569929,2967.8,2967.7,0.30819587]
[1752553405868,3.36978342,2967.6,2967.0,3.62776956]
[1752553406066,5.583,2967.5,2967.1,3.37028822]
[1752553406415,5.583,2967.4,2967.2,0.4770018]
[1752553406721,0.001,2967.8,2967.4,3.36992559]
[1752553406875,5.582,2967.7,2967.4,3.36992559]
[1752553407077,5.582,2967.7,2967.5,3.3698061]
[1752553407661,5.582,2967.7,2967.5,3.36979224]
[1752553407856,5.75,2967.7,2967.4,3.36989502]
[1752553408593,5.75,2967.7,2967.3,3.37001553]
[1752553408751,5.75,2967.7,2967.4,3.36991469]
[1752553409109,5.582,2967.6,2967.2,3.5381526]
[1752553409289,5.582,2967.6,2967.2,0.168]
[1752553409455,3.53786061,2967.5,2967.0,3.78933185]
[1752553409654,5.58,2967.4,2967.1,3.37026425]
[1752553410193,5.58,2967.4,2967.0,3.82304355]
[1752553410357,5.58,2967.4,2967.2,3.37006926]
[1752553411069,5.58,2967.4,2967.2,3.37014783]
[1752553411481,5.58,2967.4,2967.1,3.37023824]
[1752553411785,5.58,2967.4,2967.0,0.41896543]
[1752553411984,8.95002508,2967.4,2967.0,0.41896543]
[1752553412388,0.4702,2967.3,2967.0,0.25096543]
[1752553412592,5.746,2967.2,2966.9,3.37045703]
[1752553412993,5.746,2967.2,2966.8,3.37058066]
[1752553413197,3.37052892,2966.9,2966.6,0.6291]
[1752553413397,8.94763652,2966.8,2966.4,0.168]
[1752553413566,10.23153712,2966.8,2966.0,0.6291]
[1752553413768,0.168,2966.6,2966.0,1.04631225]
[1752553413986,5.576,2966.5,2966.1,3.37142996]
[1752553415284,5.576,2966.5,2966.2,3.37130927]
[1752553415490,5.576,2966.5,2966.1,3.37139648]
[1752553415679,1.2498,2967.4,2966.4,0.6291]
[1752553415974,1.2498,2967.4,2966.7,3.37073423]
[1752553415975,0.168,2967.2,2966.7,3.37073423]
[1752553416160,0.6382,2967.2,2966.8,3.37058337]
[1752553416362,5.575,2967.1,2967.0,3.37033611]
[1752553416610,5.575,2967.1,2966.9,0.168]
[1752553416764,0.168,2967.4,2967.1,3.37018311]
[1752553416963,5.574,2967.3,2967.1,3.37024348]
[1752553417488,5.574,2967.3,2967.0,3.99942146]
[1752553417807,5.574,2967.3,2967.1,3.37028025]
[1752553417961,5.574,2967.3,2966.9,3.5385156]
[1752553418167,5.574,2967.3,2967.1,3.3702038]
[1752553419422,5.574,2967.3,2967.2,3.37018064]
[1752553420123,5.574,2967.3,2967.1,3.37025661]
[1752553420700,5.574,2967.3,2967.0,3.37036294]
[1752553420911,5.574,2967.3,2967.1,3.37029057]
[1752553421421,5.574,2967.3,2967.0,3.3703599]
[1752553421628,0.4414,2967.2,2966.9,0.168]
[1752553421833,1.3764,2967.1,2966.6,0.168]
[1752553421989,9.38190493,2967.0,2966.5,3.3709514]
[1752553422327,0.168,2966.8,2966.4,4.00013828]
[1752553422632,0.168,2966.6,2966.2,3.37124606]
[1752553422828,0.168,2966.6,2966.3,3.37114258]
[1752553423325,0.168,2966.6,2966.1,0.7971]
[1752553423627,0.168,2966.6,2966.1,2.78661757]
[1752553423791,0.168,2966.6,2966.3,3.37114187]
[1752553424117,0.168,2966.6,2966.5,3.37097589]
[1752553426628,5.57,2966.7,2966.6,3.37086226]
[1752553427226,0.168,2966.9,2966.8,3.37063502]
[1752553427432,5.734,2966.9,2966.8,3.37063502]
[1752553427958,0.168,2966.9,2966.8,3.99973502]
[1752553428118,5.733,2967.3,2967.1,3.3702709]
[1752553428914,5.733,2967.3,2966.8,4.46681727]
[1752553429138,6.1744,2967.3,2967.0,3.37034545]
[1752553429514,6.1744,2967.3,2966.9,3.37048845]
[1752553429842,0.4414,2967.2,2966.7,3.53868103]
[1752553430046,0.4414,2967.1,2966.7,3.37068103]
[1752553430247,6.0044,2967.0,2966.6,3.37083236]
[1752553430450,0.4414,2966.9,2966.6,3.37083236]
[1752553430668,1.2009,2966.8,2966.4,0.168]
[1752553430812,5.563,2966.7,2966.5,3.37089492]
[1752553431014,0.168,2966.9,2966.5,6.74195178]
[1752553431250,5.562,2966.8,2966.5,4.12487855]
[1752553431430,5.562,2966.8,2966.4,0.168]
[1752553431627,5.562,2966.8,2966.4,3.37102303]
[1752553431833,0.168,2966.7,2966.3,3.37116796]
[1752553432034,0.4414,2966.6,2966.3,3.37113394]
[1752553432227,5.562,2966.5,2966.4,3.37108953]
[1752553432554,5.562,2966.5,2966.2,3.53931401]
[1752553432555,5.562,2966.5,2966.3,3.37115593]
[1752553433258,6.0034,2966.5,2966.2,0.168]
[1752553433416,6.0034,2966.5,2966.1,3.37139759]
[1752553433620,0.4414,2966.4,2966.1,3.37139759]
[1752553433845,0.4414,2966.4,2966.2,3.37129068]
[1752553435070,5.73,2966.5,2966.1,3.37137889]
[1752553435375,6.1714,2966.5,2966.1,3.37137889]
[1752553436175,0.4414,2966.4,2966.0,0.168]
[1752553436379,0.4414,2966.3,2966.0,0.168]
[1752553436584,5.558,2966.2,2966.0,3.53953851]
[1752553436883,5.9994,2966.2,2966.0,3.53953851]
[1752553437192,0.4414,2966.1,2965.9,0.002]
[1752553437333,1.1939,2966.1,2965.9,0.002]
[1752553437538,0.7525,2966.1,2965.9,0.002]
[1752553437783,0.4414,2966.0,2965.9,0.002]
[1752553439467,3.81294416,2966.0,2965.9,0.002]
[1752553439661,0.4414,2966.0,2965.9,0.002]
[1752553440486,5.9964,2966.0,2965.9,0.002]
[1752553441189,0.4414,2966.0,2965.9,0.002]
[1752553441358,5.9964,2966.0,2965.9,0.002]
[1752553443862,9.36794416,2966.0,2965.9,0.002]
[1752553445963,10.75034416,2966.0,2965.9,0.002]
[1752553446697,4.64534416,2966.0,2965.9,0.002]
[1752553446869,5.55,2966.0,2965.9,3.373606]
[1752553447207,5.55,2966.0,2965.9,0.002]
[1752553447419,5.55,2966.0,2965.9,3.72784585]
[1752553447611,0.168,2966.3,2966.1,3.37140216]
[1752553447818,5.55,2966.2,2966.0,3.37148986]
[1752553448701,0.168,2966.3,2966.1,3.37143049]
[1752553448996,0.6094,2966.3,2965.9,3.72784249]
[1752553449204,5.549,2966.2,2965.9,3.37365448]
[1752553450488,5.9904,2966.2,2965.9,0.002]
[1752553450804,6.1584,2966.2,2965.9,0.002]
[1752553451568,5.717,2966.2,2965.9,0.002]
[1752553452106,6.1575,2966.2,2965.9,0.002]
[1752553453405,0.168,2966.2,2965.9,0.35617652]
[1752553453574,5.546,2966.1,2965.9,0.002]
[1752553453774,5.546,2966.1,2965.9,3.37357122]
[1752553454004,5.546,2966.1,2966.0,3.37154416]
[1752553454810,0.4415,2966.7,2965.9,0.002]
[1752553455007,5.711,2966.6,2966.1,0.7971]
[1752553455211,0.001,2966.7,2966.1,0.7971]
[1752553455212,0.001,2966.7,2966.5,3.37097589]
[1752553455410,5.543,2966.6,2966.5,3.37097589]
[1752553455612,0.001,2966.7,2966.4,3.37104987]
[1752553455905,0.001,2966.7,2966.6,3.37086226]
[1752553456404,5.543,2966.7,2966.5,3.37092737]
[1752553456793,0.001,2966.7,2966.5,3.37092737]
[1752553457178,0.001,2966.7,2966.6,3.37086226]
[1752553457379,5.542,2966.7,2966.6,4.74776559]
[1752553457598,5.542,2966.7,2966.6,5.40047421]
[1752553457794,5.542,2966.7,2966.6,5.36676559]
[1752553458685,5.542,2966.7,2966.6,5.6180139]
[1752553459009,5.541,2966.7,2966.6,5.1670139]
[1752553459212,5.541,2966.7,2966.6,3.79011057]
[1752553460612,5.541,2966.7,2966.6,4.24111057]
[1752553460832,5.541,2966.7,2966.6,3.79011057]
[1752553461718,5.541,2966.7,2966.6,0.168]
[1752553461883,5.541,2966.7,2966.3,0.7971]
[1752553462222,5.9815,2966.7,2966.5,3.37091887]
[1752553462715,5.9815,2966.7,2966.6,3.37086226]
[1752553462915,5.541,2966.7,2966.6,3.37086226]
[1752553463419,5.536,2966.7,2966.6,3.37086226]
[1752553464559,0.001,2966.7,2966.6,3.37086226]
[1752553464726,5.535,2966.7,2966.6,3.37086226]
[1752553465027,5.534,2966.7,2966.6,4.04504586]
[1752553465229,5.534,2966.7,2966.6,4.21304586]
[1752553466025,0.001,2966.7,2966.6,14.66404586]
[1752553466227,5.533,2966.7,2966.6,14.66404586]
[1752553470017,0.001,2966.7,2966.6,14.66404586]
[1752553475736,0.001,2966.7,2966.6,15.29314586]
[1752553477096,0.001,2966.7,2966.6,14.84214586]
[1752553477428,1e-08,2966.7,2966.6,21.83662646]
[1752553477825,1e-08,2966.7,2966.6,15.29314586]
[1752553478077,1e-08,2966.7,2966.6,14.16796226]
[1752553478364,1e-08,2966.7,2966.6,13.53886226]
[1752553478572,1e-08,2966.7,2966.6,13.98986226]
[1752553478857,1e-08,2966.7,2966.6,13.53886226]
[1752553479683,0.44050001,2966.7,2966.6,3.37086226]
[1752553479824,0.44050001,2966.7,2966.5,3.53895206]
[1752553480167,0.44050001,2966.7,2966.5,3.3709695]
[1752553480367,1e-08,2966.7,2966.0,3.37154416]
[1752553480587,1e-08,2966.7,2966.6,3.37086226]
[1752553480781,1e-08,2966.7,2966.6,0.168]
[1752553481077,1e-08,2966.7,2966.6,3.53886226]
[1752553481424,1e-08,2966.7,2966.6,4.64537088]
[1752553481670,1e-08,2966.7,2966.6,4.34049642]
[1752553481875,1e-08,2966.7,2966.6,3.37086226]
[1752553482342,1e-08,2966.7,2966.2,3.37129159]
[1752553482343,0.44700001,2966.7,2966.2,6.1451]
[1752553482527,0.44700001,2966.7,2966.5,3.37086314]
[1752553482716,0.447,2966.6,2966.4,3.37102307]
[1752553482932,0.447,2966.5,2966.1,0.168]
[1752553483161,0.615,2966.4,2966.1,3.37134725]
[1752553483365,0.615,2966.4,2966.2,3.37131683]
[1752553483521,0.615,2966.4,2966.0,3.62096522]
[1752553483522,0.447,2966.3,2966.0,3.3715372]
[1752553483725,0.447,2966.3,2966.2,3.37131683]
[1752553484078,0.168,2966.4,2966.2,3.37125312]
[1752553484568,5.515,2966.6,2966.4,3.37098962]
[1752553484774,5.515,2966.6,2966.1,0.0337143]
[1752553484775,0.447,2966.5,2966.1,0.168]
[1752553485066,0.447,2966.5,2966.1,3.3713845]
[1752553485263,0.9406,2966.4,2966.2,3.37131347]
[1752553485629,0.447,2966.3,2966.2,3.37131347]
[1752553486232,0.447,2966.3,2966.1,3.37139357]
[1752553486452,0.447,2966.3,2966.2,3.37131683]
[1752553488248,0.168,2966.4,2966.3,3.37120318]
[1752553488444,5.679,2966.4,2966.3,3.37120318]
[1752553488646,0.168,2966.4,2966.3,3.37120318]
[1752553489039,1e-08,2966.7,2966.6,3.37086226]
[1752553489243,5.51000001,2966.7,2966.6,3.37086226]
[1752553490442,1e-08,2966.7,2966.6,3.37086226]
[1752553490679,1e-08,2966.7,2966.6,4.73482418]
[1752553490838,1e-08,2966.7,2966.6,4.70111556]
[1752553491183,1e-08,2966.7,2966.6,4.25741556]
[1752553491769,1e-08,2966.7,2966.6,3.53886226]
[1752553493648,1e-08,2966.7,2966.6,0.168]
[1752553493875,1e-08,2966.7,2966.6,3.53886226]
[1752553498402,1e-08,2966.7,2966.6,4.64537088]
[1752553499527,1e-08,2966.7,2966.6,4.20167088]
[1752553499813,0.169,2967.4,2967.3,3.37006706]
[1752553499984,0.001,2967.4,2967.3,3.37006706]
[1752553500330,0.001,2967.4,2967.3,0.168]
[1752553500607,0.9381,2967.3,2967.0,3.37036338]
[1752553500983,0.447,2967.2,2967.0,3.37036338]
[1752553501195,0.447,2967.1,2966.9,3.53852128]
[1752553501370,0.447,2967.0,2966.8,3.37056208]
[1752553501576,0.447,2967.0,2966.6,0.92526413]
[1752553501790,0.447,2967.0,2966.9,3.37052141]
[1752553502471,0.168,2967.1,2967.0,3.37040781]
[1752553502928,0.615,2967.1,2966.9,3.3704672]
[1752553503075,0.615,2967.1,2967.0,3.37040781]
[1752553503471,0.615,2967.1,2966.7,3.37070825]
[1752553503713,0.447,2967.0,2966.9,3.37052141]
[1752553504776,0.447,2967.0,2966.8,3.37060743]
[1752553504978,0.447,2966.9,2966.8,3.37060743]
[1752553506030,0.447,2966.9,2966.7,3.37074759]
[1752553506222,0.447,2966.8,2966.7,3.37074759]
[1752553506382,5.666,2967.1,2966.6,0.92526413]
[1752553506583,0.7822,2966.9,2966.0,6.37403089]
[1752553506811,0.615,2966.8,2966.5,3.3709166]
[1752553507010,5.941,2966.7,2966.3,0.168]
[1752553507324,0.447,2966.6,2966.3,3.53913342]
[1752553507482,5.494,2966.7,2966.3,0.168]
[1752553507682,5.941,2966.7,2966.5,3.37095042]
[1752553508319,0.447,2966.6,2966.4,3.37103949]
[1752553508526,0.447,2966.6,2966.5,3.37097589]
[1752553508695,5.494,2966.7,2966.6,3.37086226]
[1752553510017,5.941,2966.7,2966.5,3.37092764]
[1752553510211,0.447,2966.6,2966.4,3.37108953]
[1752553510529,0.447,2966.5,2966.4,3.37108953]
[1752553510725,0.447,2966.5,2966.2,3.53928753]
[1752553510929,0.4719,2966.4,2966.2,3.37128753]
[1752553511125,0.9299,2966.6,2966.4,3.37098175]
[1752553511327,0.4719,2966.5,2966.2,3.37129265]
[1752553511527,0.168,2966.4,2966.3,3.37120228]
[1752553511740,0.6399,2966.4,2966.2,3.37130377]
[1752553511946,5.9629,2966.3,2966.2,3.37130377]
[1752553512643,5.491,2966.3,2966.2,3.37130377]
[1752553512814,0.7619,2966.6,2966.5,3.37097589]
[1752553513014,6.4189,2966.6,2966.5,3.37097589]
[1752553513430,6.2189,2966.6,2966.5,3.37097589]
[1752553513631,6.6908,2966.6,2966.5,3.37097589]
[1752553513828,6.6908,2966.6,2966.2,3.37121038]
[1752553514143,0.4719,2966.5,2966.2,3.37131222]
[1752553514332,6.2189,2966.6,2966.4,3.37102069]
[1752553515046,0.4719,2966.5,2966.4,3.37102069]
[1752553515443,0.4719,2966.5,2966.1,0.168]
[1752553515650,0.4719,2966.5,2966.3,3.37109221]
[1752553516011,0.4719,2966.5,2966.1,0.168]
[1752553516213,0.168,2966.4,2966.1,3.37142576]
[1752553516432,5.9589,2966.3,2966.1,3.37142576]
[1752553516760,0.4719,2966.2,2966.0,3.62235017]
[1752553517124,0.4719,2966.2,2966.1,3.37143049]
[1752553517444,5.487,2966.3,2966.1,3.37143049]
[1752553517653,5.487,2966.3,2966.0,3.62235066]
[1752553517805,5.9589,2966.3,2966.0,3.62235066]
[1752553518010,5.9589,2966.3,2966.1,3.37142739]
[1752553518410,5.9589,2966.3,2966.0,3.62235419]
[1752553518610,5.487,2966.3,2966.0,3.62235419]
[1752553518808,0.4719,2966.2,2966.0,3.62235419]
[1752553519426,0.4719,2966.2,2966.0,0.25086321]
[1752553519622,0.168,2966.4,2966.2,3.37131683]
[1752553519874,5.484,2966.7,2966.6,3.37086226]
[1752553520177,5.484,2966.7,2966.2,3.84282999]
[1752553520178,5.9559,2966.7,2966.3,3.37109905]
[1752553520464,0.4719,2966.6,2966.3,3.37115104]
[1752553520633,0.4719,2966.5,2966.2,3.37129734]
[1752553520837,0.4719,2966.5,2966.3,3.37113342]
[1752553521090,0.4719,2966.5,2966.4,3.37108953]
[1752553521270,0.4719,2966.5,2966.3,3.37117531]
[1752553521662,0.168,2966.6,2966.2,3.37125757]
[1752553521833,0.4719,2966.4,2966.2,3.37125757]
[1752553522176,5.482,2966.4,2966.1,0.168]
[1752553522353,1.2949,2966.3,2966.1,3.37142925]
[1752553522547,0.823,2966.3,2966.1,3.37142925]
[1752553522756,0.4719,2966.2,2966.1,3.37142925]
[1752553523252,0.4719,2966.2,2966.0,0.25086321]
[1752553523448,0.4719,2966.1,2966.0,0.002]
[1752553523967,5.9529,2966.1,2966.0,0.002]
[1752553525879,9.32433049,2966.1,2966.0,0.002]
[1752553527369,5.9529,2966.1,2966.0,0.002]
[1752553527575,9.32433049,2966.1,2966.0,0.002]
[1752553527772,5.9529,2966.1,2966.0,0.002]
[1752553528479,0.823,2966.3,2966.0,0.002]
[1752553528480,1.2949,2966.3,2966.0,0.002]
[1752553528681,5.478,2966.1,2966.0,3.37354416]
[1752553530381,5.478,2966.1,2966.0,4.1491442]
[1752553530584,4.71304416,2966.0,2965.9,0.002]
[1752553530769,1.8134,2966.0,2965.9,0.002]
[1752553530973,5.18494416,2966.0,2965.9,0.002]
[1752553531173,10.65994416,2966.0,2965.9,0.002]
[1752553531383,11.3872252,2966.0,2965.9,0.002]
[1752553531799,3.92268128,2965.0,2964.9,0.002]
[1752553532007,16.72056188,2965.0,2964.9,0.002]
[1752553532205,17.19246188,2965.0,2964.9,0.002]
[1752553533084,10.64898128,2965.0,2964.9,0.002]
[1752553534112,7.2763,2965.0,2964.9,0.002]
[1752553534914,10.64898128,2965.0,2964.9,0.002]
[1752553535319,6.7263,2965.0,2964.9,0.002]
[1752553536897,0.7927,2965.6,2964.9,0.002]
[1752553537223,0.7927,2965.8,2965.6,3.37193836]
[1752553537415,5.472,2965.7,2965.6,3.37193836]
[1752553537612,0.7569,2966.7,2965.3,0.8291]
[1752553537818,6.2279,2966.7,2966.2,3.37122565]
[1752553538125,0.4729,2966.6,2965.8,0.8291]
[1752553538305,0.4729,2966.6,2966.2,3.37125059]
[1752553538622,0.4719,2966.5,2966.2,3.37125059]
[1752553538801,5.471,2966.4,2966.3,3.37120318]
[1752553539003,5.471,2966.4,2966.2,3.37127552]
[1752553539202,5.471,2966.4,2966.1,3.37138282]
[1752553539398,5.9429,2966.4,2966.0,3.37149429]
[1752553539586,0.4719,2966.3,2966.0,3.37149429]
[1752553540021,0.4719,2966.3,2966.0,3.37145072]
[1752553540763,0.6399,2966.3,2966.0,3.37145072]
[1752553540964,0.6399,2966.3,2965.9,3.3716408]
[1752553541134,0.4603,2966.2,2965.9,3.3716408]
[1752553541464,0.168,2966.3,2966.1,3.3713474]
[1752553542060,0.168,2966.3,2966.2,3.37131683]
[1752553542284,0.168,2966.4,2966.3,3.37120318]
[1752553542424,0.001,2966.6,2966.5,3.37097589]
[1752553543241,0.001,2966.6,2966.3,0.168]
[1752553543443,0.6293,2966.6,2966.3,3.37114089]
[1752553544129,1.2199,2966.5,2965.7,0.7765]
[1752553544328,0.168,2966.3,2966.0,3.3714802]
[1752553545053,0.6283,2966.3,2966.0,3.3714802]
[1752553545441,0.168,2966.3,2965.8,0.168]
[1752553545648,0.168,2966.3,2966.2,3.37131683]
[1752553546332,0.168,2966.3,2966.1,3.3713866]
[1752553546864,0.168,2966.3,2965.8,3.53976003]
[1752553547165,0.168,2966.3,2966.0,3.3714831]
[1752553547470,0.168,2966.3,2966.1,3.37142572]
[1752553548163,0.001,2966.6,2966.4,3.37107825]
[1752553548363,0.6293,2966.6,2966.0,0.9186]
[1752553548682,6.0923,2966.6,2966.2,3.37128694]
[1752553548842,5.632,2966.6,2966.3,3.37119993]
[1752553549240,5.463,2966.5,2966.4,3.37108953]
[1752553549550,5.463,2966.5,2966.2,0.20171316]
[1752553549755,5.463,2966.5,2966.2,0.168]
[1752553549984,5.463,2966.5,2966.2,3.53929704]
[1752553550498,0.8192,2966.4,2966.0,3.37146382]
[1752553550819,0.4603,2966.3,2965.9,0.168]
[1752553551304,5.462,2966.2,2966.0,3.37154321]
[1752553551506,5.462,2966.2,2966.1,3.37143049]
[1752553551722,5.462,2966.2,2965.9,0.168]
[1752553551867,5.462,2966.2,2966.0,3.37148998]
[1752553552204,5.462,2966.2,2965.9,13.53962211]
[1752553552800,5.462,2966.2,2965.5,0.7895]
[1752553552991,0.6283,2966.1,2965.8,3.3716935]
[1752553553599,0.6283,2966.1,2965.7,3.37185754]
[1752553553802,0.6283,2966.1,2965.8,10.0]
[1752553554178,0.6283,2966.1,2965.8,3.3716977]
[1752553554382,0.6283,2966.1,2965.7,3.37182434]
[1752553554703,0.6283,2966.1,2965.6,13.53994031]
[1752553554999,0.6283,2966.1,2965.7,3.37187556]
[1752553556404,0.6283,2966.1,2965.8,3.37174792]
[1752553556610,0.168,2966.1,2966.0,3.37154416]
[1752553556973,0.168,2966.1,2965.9,3.37160664]
[1752553557476,0.168,2966.1,2965.9,3.37165588]
[1752553558004,0.168,2966.1,2965.6,3.5398979]
[1752553558307,0.6283,2966.1,2965.7,3.37182767]
[1752553558611,0.6283,2966.1,2965.6,0.168]
[1752553558612,0.7694,2965.9,2965.6,0.168]
[1752553558781,0.168,2965.7,2965.3,3.37226034]
[1752553558986,3.53988522,2965.7,2965.6,0.002]
[1752553560209,4.08988522,2965.7,2965.6,0.002]
[1752553560397,4.89828522,2965.7,2965.6,0.002]
[1752553560597,5.35858522,2965.7,2965.6,0.002]
[1752553560906,0.9764,2965.7,2965.6,0.002]
[1752553561106,6.4314,2965.7,2965.6,0.002]
[1752553561708,6.8917,2965.7,2965.6,0.002]
[1752553561915,10.26358522,2965.7,2965.6,0.002]
[1752553562297,6.8917,2965.7,2965.6,0.002]
[1752553562614,10.26358522,2965.7,2965.6,0.002]
[1752553563988,11.54086626,2965.7,2965.6,0.002]
[1752553564314,10.81358522,2965.7,2965.6,0.002]
[1752553567624,6.4314,2965.7,2965.6,0.002]
[1752553567814,10.26358522,2965.7,2965.6,0.002]
[1752553568013,6.4314,2965.7,2965.6,0.002]
[1752553568527,6.4314,2965.7,2965.6,3.37399892]
[1752553568734,6.4314,2965.7,2965.6,0.002]
[1752553569032,6.2304358,2965.7,2965.6,0.002]
[1752553571436,0.4603,2966.0,2965.6,0.002]
[1752553571640,0.4436,2966.4,2965.6,0.4484]
[1752553571868,0.168,2966.0,2965.9,3.37165784]
[1752553572165,5.616,2966.0,2965.9,3.37165784]
[1752553574566,5.616,2966.0,2965.8,3.37175956]
[1752553574747,5.616,2966.0,2965.8,4.04623529]
[1752553575449,5.616,2966.0,2965.9,3.37165784]
[1752553575971,5.616,2966.0,2965.8,4.04629783]
[1752553576368,5.616,2966.0,2965.9,3.37165784]
[1752553580073,0.168,2966.0,2965.9,3.37165784]
[1752553580378,0.001,2966.3,2966.2,3.37131683]
[1752553580674,5.443,2966.3,2966.2,3.37131683]
[1752553580833,0.001,2966.3,2966.2,4.57451683]
[1752553581032,0.001,2966.3,2966.2,5.36911055]
[1752553582258,0.001,2966.3,2966.2,4.92271055]
[1752553582458,0.001,2966.3,2966.2,5.36911055]
[1752553582664,0.001,2966.3,2966.2,4.92271055]
[1752553583175,0.001,2966.3,2966.2,4.16591055]
[1752553583475,0.001,2966.3,2966.2,3.37131683]
[1752553584151,0.001,2966.3,2966.2,3.81771683]
[1752553584872,0.001,2966.3,2966.1,3.37137924]
[1752553585089,0.001,2966.3,2966.2,3.37131683]
[1752553585694,0.001,2966.3,2966.1,3.37138827]
[1752553585899,0.001,2966.3,2966.0,3.37153687]
[1752553585900,0.4436,2966.2,2966.0,3.37147089]
[1752553586084,0.4436,2966.1,2965.6,9.57679562]
[1752553586287,0.4436,2966.1,2965.7,3.37188522]
[1752553586596,5.8806,2966.1,2965.8,3.37177152]
[1752553587373,5.8806,2966.1,2965.9,3.37160115]
[1752553587568,5.8806,2966.1,2965.8,3.37170984]
[1752553587978,5.8806,2966.1,2965.6,11.02570184]
[1752553587979,1.2524,2966.0,2965.6,3.37399368]
[1752553588177,1.2524,2966.0,2965.6,3.373938]
[1752553589899,0.8088,2966.0,2965.6,0.002]
[1752553590121,0.6116,2965.9,2965.6,0.002]
[1752553590271,0.6116,2965.9,2965.6,3.37399607]
[1752553590610,5.435,2965.8,2965.6,3.37399607]
[1752553591108,5.435,2965.8,2965.7,3.37188522]
[1752553593524,5.435,2965.8,2965.6,0.86161987]
[1752553593703,5.435,2965.8,2965.6,0.002]
[1752553593910,0.4436,2965.7,2965.6,0.002]
[1752553594443,1.2295,2965.7,2965.6,0.002]
[1752553595528,4.60138522,2965.7,2965.6,0.002]
[1752553596539,0.7859,2965.7,2965.6,0.002]
[1752553596701,5.435,2965.8,2965.6,0.002]
[1752553597642,0.8285,2965.9,2965.6,0.002]
[1752553597841,5.43,2965.8,2965.6,0.002]
[1752553598209,5.43,2965.8,2965.6,3.37399271]
[1752553598447,5.43,2965.7,2965.6,3.37399271]
[1752553598648,0.001,2966.3,2966.0,3.37144925]
[1752553598848,5.43,2966.3,2966.2,3.37131683]
[1752553599033,5.43,2966.3,2965.8,1.2333]
[1752553599346,5.429,2966.2,2966.1,3.37143049]
[1752553599702,5.429,2966.2,2965.8,0.9549]
[1752553599908,0.168,2966.0,2965.8,3.37177152]
[1752553600333,5.8726,2965.9,2965.6,0.002]
[1752553600547,0.168,2965.7,2965.6,0.002]
[1752553601966,0.602,2965.7,2965.6,0.002]
[1752553602750,0.168,2965.7,2965.6,3.37399892]
[1752553603887,5.429,2965.9,2965.8,3.37177152]
[1752553604076,5.597,2965.9,2965.8,3.37177152]
[1752553604836,5.429,2965.9,2965.8,4.19537152]
[1752553605036,5.429,2965.9,2965.8,4.64797152]
[1752553605879,0.001,2966.0,2965.9,3.37165784]
[1752553606042,5.427,2966.0,2965.9,3.37165784]
[1752553606646,0.001,2966.0,2965.9,3.37165784]
[1752553606843,0.001,2966.0,2965.9,3.82425784]
[1752553608697,0.001,2966.0,2965.9,3.85797441]
[1752553608909,0.001,2966.0,2965.9,5.60797895]
[1752553612420,0.001,2966.0,2965.9,5.15537895]
[1752553613524,0.603,2966.0,2965.8,3.37171823]
[1752553613686,0.434,2965.9,2965.8,3.37170374]
[1752553613890,5.855,2965.9,2965.8,3.37170374]
[1752553614101,5.855,2965.9,2965.6,3.37395263]
[1752553614288,1.354,2965.8,2965.6,3.37395263]
[1752553615311,0.92,2965.8,2965.6,0.002]
[1752553615515,0.434,2965.7,2965.6,0.002]
[1752553616597,0.92,2965.8,2965.6,3.37399892]
[1752553616942,1.354,2965.8,2965.6,0.002]
[1752553617541,1.354,2965.8,2965.6,3.37399715]
[1752553617936,1.354,2965.8,2965.6,0.002]
[1752553619051,0.434,2965.7,2965.6,0.002]
[1752553619750,4.35588522,2965.7,2965.6,0.002]
[1752553621050,5.852,2965.7,2965.6,0.002]
[1752553621350,5.418,2965.7,2965.6,3.37399892]
[1752553622155,0.001,2966.0,2965.9,3.37165784]
[1752553622450,0.001,2966.0,2965.9,4.12435977]
[1752553622649,0.001,2966.0,2965.9,3.37165784]
[1752553623548,0.001,2966.0,2965.6,0.7856]
[1752553623748,6.019,2965.9,2965.6,3.37393877]
[1752553623951,0.434,2965.8,2965.6,0.002]
[1752553624517,0.434,2965.7,2965.6,0.002]
[1752553625467,3.80588522,2965.7,2965.6,0.002]
[1752553625659,4.35588522,2965.7,2965.6,0.002]
[1752553625972,0.55,2965.7,2965.6,0.002]
[1752553626174,0.984,2965.7,2965.6,0.002]
[1752553626375,4.35588522,2965.7,2965.6,0.002]
[1752553627075,3.92188522,2965.7,2965.6,0.002]
[1752553627371,1.2658,2965.9,2965.8,3.7488773]
[1752553627676,10.60245784,2965.9,2965.8,3.7488773]
[1752553627850,5.414,2965.9,2965.8,3.7488773]
[1752553628871,0.001,2966.0,2965.8,3.7488773]
[1752553629074,5.582,2965.9,2965.8,7.12064172]
[1752553629246,0.001,2966.0,2965.9,3.37165784]
[1752553629455,5.415,2966.0,2965.9,3.37165784]
[1752553630365,5.414,2966.0,2965.9,3.37165784]
[1752553631371,0.001,2966.0,2965.9,3.37165784]
[1752553631571,5.414,2966.0,2965.9,3.37165784]
[1752553636213,0.001,2966.3,2965.9,5.17578772]
[1752553636350,0.001,2966.3,2966.2,3.37131683]